{"text_format":"1","workbook":"xlsx","n_sheets":1,"sheets":["請求書原紙　　改定案2020.05.12"],"not_rendered":{"charts":0,"images":4,"macros":1,"external_links":0,"defined_names":1,"comments":1,"pivot_tables":0},"unopened":[],"bounds":{"document_bytes":16777216,"sheet_cells":100000,"rows_first":2000,"rows_last":500,"rows_between":2000,"halvings":0,"cell_chars":16384,"cell_head_chars":4096},"cells_cut":0,"cells_raw":0,"read":"whole","date_system":"1900"}

{"sheet":"請求書原紙　　改定案2020.05.12","index":0,"n_rows":59,"n_cols":64,"rows_kept":59,"cut":false,"hidden":false,"merged":[[55,1,55,2],[55,3,55,5],[55,6,55,7],[57,1,57,2],[57,3,57,5],[57,6,57,7],[57,8,57,16],[57,25,57,29],[58,1,58,2],[58,3,58,5],[58,6,58,7],[58,8,58,16],[58,25,58,29],[55,8,55,16],[55,25,55,29],[56,1,56,2],[47,10,47,15],[47,16,47,23],[47,24,47,31],[47,40,47,46],[47,32,47,39],[56,3,56,5],[56,6,56,7],[47,1,47,2],[47,3,47,9],[51,1,51,2],[51,3,51,9],[50,1,50,2],[50,3,50,9],[49,1,49,2],[49,3,49,9],[52,1,52,9],[56,8,56,16],[56,25,56,29],[54,1,54,2],[54,3,54,6],[54,7,54,12],[54,17,54,23],[54,24,58,24],[54,25,54,29],[39,27,39,28],[39,29,39,33],[42,10,42,15],[42,16,42,23],[42,24,42,31],[42,32,42,39],[42,40,42,46],[46,10,46,15],[46,16,46,23],[46,24,46,31],[46,32,46,35],[46,36,46,39],[46,40,46,46],[43,3,43,9],[42,1,42,2],[42,3,42,9],[43,10,43,15],[43,16,43,23],[43,24,43,31],[43,32,43,35],[43,36,43,39],[43,40,43,46],[43,1,43,2],[36,2,36,4],[36,5,36,6],[36,8,36,9],[36,11,36,12],[36,21,36,23],[36,29,37,44],[37,17,38,19],[38,1,39,3],[38,4,39,7],[38,8,39,10],[39,34,41,35],[39,36,40,39],[39,40,39,46],[40,1,41,3],[40,4,41,15],[40,27,41,31],[40,32,40,33],[40,40,40,46],[41,36,41,39],[41,40,41,46],[38,11,39,15],[39,18,41,18],[39,19,41,24],[39,25,41,26],[21,1,21,2],[21,3,21,9],[21,16,21,23],[22,1,22,2],[22,3,22,9],[23,1,23,9],[35,21,35,23],[35,24,35,26],[35,29,35,44],[25,3,25,7],[25,15,25,19],[26,3,26,7],[26,8,27,17],[26,18,27,27],[28,8,29,17],[28,18,29,27],[25,30,30,46],[30,3,30,7],[32,15,33,16],[32,17,33,34],[32,42,33,46],[23,40,23,46],[23,35,23,39],[23,28,23,34],[22,10,22,15],[18,40,18,46],[19,40,19,46],[20,40,20,46],[21,40,21,46],[22,40,22,46],[23,10,23,15],[22,16,22,23],[23,16,23,23],[23,24,23,27],[20,1,20,2],[20,3,20,9],[20,16,20,23],[17,16,17,23],[16,1,16,2],[16,3,16,9],[16,16,16,23],[19,1,19,2],[19,3,19,9],[19,16,19,23],[18,1,18,2],[18,3,18,9],[18,16,18,23],[0,1,0,45],[1,6,2,12],[2,15,3,16],[2,17,3,34],[2,42,3,46],[5,21,5,23],[5,24,5,26],[5,29,5,44],[13,1,13,2],[13,3,13,9],[13,16,13,23],[9,25,11,26],[9,27,9,28],[9,29,9,33],[9,34,11,35],[9,36,10,39],[9,40,9,46],[10,27,11,31],[10,32,10,33],[10,40,10,46],[11,36,11,39],[8,1,9,3],[8,4,9,7],[8,8,9,10],[17,32,17,35],[16,32,16,35],[15,32,15,35],[14,32,14,35],[13,32,13,39],[6,2,6,4],[6,5,6,6],[6,8,6,9],[6,11,6,12],[6,21,6,23],[6,29,7,44],[8,11,9,15],[9,18,11,18],[9,19,11,24],[10,1,12,3],[10,4,12,15],[15,1,15,2],[15,3,15,9],[15,16,15,23],[14,1,14,2],[14,3,14,9],[14,16,14,23],[17,1,17,2],[17,3,17,9],[11,40,11,46],[14,36,14,39],[17,36,17,39],[15,36,15,39],[16,36,16,38],[14,40,14,46],[13,40,13,46],[15,40,15,46],[16,40,16,46],[17,40,17,46],[13,10,13,15],[15,10,15,15],[14,10,14,15],[16,10,16,15],[17,10,17,15],[18,10,18,15],[19,10,19,15],[20,10,20,15],[21,10,21,15],[13,24,13,31],[22,24,22,31],[21,24,21,31],[20,24,20,31],[19,24,19,31],[18,24,18,31],[17,24,17,31],[16,24,16,31],[15,24,15,31],[14,24,14,31],[46,1,46,2],[46,3,46,9],[48,10,48,15],[48,16,48,23],[48,24,48,31],[48,40,48,46],[44,10,44,15],[44,16,44,23],[44,24,44,31],[44,32,44,35],[44,36,44,39],[44,40,44,46],[45,10,45,15],[45,16,45,23],[45,24,45,31],[45,32,45,35],[45,36,45,38],[45,40,45,46],[45,1,45,2],[45,3,45,9],[44,1,44,2],[44,3,44,9],[48,1,48,2],[48,3,48,9],[52,10,52,15],[50,32,50,39],[51,32,51,39],[48,32,48,39],[50,16,50,23],[50,24,50,31],[50,40,50,46],[51,10,51,15],[51,16,51,23],[51,24,51,31],[51,40,51,46],[49,32,49,39],[49,40,49,46],[52,16,52,23],[52,24,52,27],[52,28,52,34],[52,35,52,39],[52,40,52,46],[49,16,49,23],[49,24,49,31],[49,10,49,15],[50,10,50,15]]}
[null,"①(控用）の水色・黄色セルの入力をお願いいたします。　　　　　　　　　　　　　　　　　　　　　　　　　　　　　　　　　　　　　　　　　　　　　　　　　　　　　　　　　　　②印刷をすると（提出用）と2枚印刷がでます。　　　　　　　　　　　　　　　　　　　　　　　　　　　　　　　　　　　　　　　　　　　　　　　　　　　　　　　　　　　③（提出用）をご提出お願いいたします。　　　　　　　　　　　　　　　　　　　　　　　　　　　　　　　　　　　　　　　　　　　　　　　　　　　　　　　　　　　　　　　　　　　　　　　　　　　　④（控用）は御社にて保管願います。　　　　　　　　　　　　　　　　　　　　　　　　　　　　　　　　　　　　　　　　　　　　　　　　　　　　　　　　　　　　　　　　　　　　　※文字・数字を入力すると水色・黄色セルは白色に変わります。　　　　　　　　　　　　　　　　　　　　　　　　　　　　　　　　　　　　　　　　　　　　　　　　　　　　※黄色セルは出来高査定の場合入力をお願いいたします。",null,null,null,null,null,null,null,null,null,null,null,null,null,null,null,null,null,null,null,null,null,null,null,null,null,null,null,null,null,null,null,null,null,null,null,null,null,null,null,null,null,null,null,null,null,null,null,null,null,"　　　"]
[null,null,null,null,null,null,null,null,null,null,null,null,null,null,null,null,null,null,null,null,null,null,null,null,null,null,null,null,null,null,null,null,null,null,null,null,null,null,null,null,null,null,"請求書整理№",null,null,null,null,null,null,null,null,null,null,null,"　　"]
[null,null,null,null,null,null,null,null,null,null,null,null,null,null,null,null,null,"月分出来高請求書（控　用）"]
[null,"佐伯綜合建設株式会社　御中"]
[]
[null,null,null,null,null,null,null,null,null,null,null,null,null,null,null,null,null,null,null,null,null,"業者コード",null,null,"請求者",null,null,"住所"]
[null,null,"請求",null,null,null,null,"年",null,null,"月",null,null,"日"]
[null,null,null,null,null,null,null,null,null,null,null,null,null,null,null,null,null,null,null,null,null,null,null,null,null,null,null,"氏名"]
[null,"工事№",null,null,null,null,null,null,"注文書№"]
[null,null,null,null,null,null,null,null,null,null,null,null,null,null,null,null,null,null,"振込先",null,null,null,null,null,null,"銀行　　　　　　　　　　　　　　金庫　　　　　　　　　　　　　　　　組合",null,"フリガナ",null,null,null,null,null,null,"普通　　　　　　　　　　　　　　　　　　　　　　　　　　　　　　　　　　　　　　　　　　　　　　　　　　　　　　　　　　　　　　　　　　　　　　　　　　　　　　　　　　　　　　　　　　　　　　　　　　　　　　　　当座",null,"ﾌﾘｶﾞﾅ　　　　　　　　　　　　　　　　　　口座名義"]
[null,"工事名",null,null,null,null,null,null,null,null,null,null,null,null,null,null,null,null,null,null,null,null,null,null,null,null,null,null,null,null,null,null,"支店"]
[null,null,null,null,null,null,null,null,null,null,null,null,null,null,null,null,null,null,null,null,null,null,null,null,null,null,null,null,null,null,null,null,null,null,null,null,"口座番号"]
[]
[null,"工種№",null,"工種名・品名",null,null,null,null,null,null,"内容",null,null,null,null,null,"出来高額",null,null,null,null,null,null,null,"出来高額累計",null,null,null,null,null,null,null,"出来高請求確認欄",null,null,null,null,null,null,null,"備考"]
[null,null,null,null,null,null,null,null,null,null,null,null,null,null,null,null,null,null,null,null,null,null,null,null,null,null,null,null,null,null,null,null,"請負金額"]
[null,null,null,null,null,null,null,null,null,null,null,null,null,null,null,null,null,null,null,null,null,null,null,null,null,null,null,null,null,null,null,null,"入金済金額"]
[null,null,null,null,null,null,null,null,null,null,null,null,null,null,null,null,null,null,null,null,null,null,null,null,null,null,null,null,null,null,null,null,"自主検査出来高率",null,null,null,null,null,null,"％"]
[null,null,null,null,null,null,null,null,null,null,null,null,null,null,null,null,null,null,null,null,null,null,null,null,null,null,null,null,null,null,null,null,"今回請求額",null,null,null,{"$f":"ROUNDDOWN(AK17*(AK15/100)-AK16,-4)","v":0}]
[]
[]
[null,null,null,null,null,null,null,null,null,null,null,null,null,null,null,null,null,null,null,null,null,null,null,null,null,null,null,null,null,null,null,null,null,null,null,null,null,null,null,null,null,null,null,null,null,null,null,null,null,null,null,null,null,null,null,null,null,null,null,null,null,null,null,"本社"]
[null,null,null,null,null,null,null,null,null,null,null,null,null,null,null,null,null,null,null,null,null,null,null,null,null,null,null,null,null,null,null,null,null,null,null,null,null,null,null,null,null,null,null,null,null,null,null,null,null,null,null,null,null,null,null,null,null,null,null,null,null,null,null,"可児支店"]
[null,null,null,null,null,null,null,null,null,null,null,null,null,null,null,null,null,null,null,null,null,null,null,null,null,null,null,null,null,null,null,null,null,null,null,null,null,null,null,null,null,null,null,null,null,null,null,null,null,null,null,null,null,null,null,null,null,null,null,null,null,null,null,"尾張支店"]
[null,"右 記 の 通 り 請 求 申 し 上 げ ま す 。",null,null,null,null,null,null,null,null,"請求合計(税抜)",null,null,null,null,null,{"$f":"SUM(Q15:X23)","v":0},null,null,null,null,null,null,null,"担当支店",null,null,null,null,null,null,null,null,null,null,"現場監督名",null,null,null,null,null,null,null,null,null,null,null,null,null,null,null,null,null,null,null,null,null,null,null,null,null,null,null,"三河営業所"]
[]
[null,null,"※","請求書〆日",null,null,null,null,"毎月末日",null,null,null,null,null,"※","ご提出期限",null,null,null,null,"毎月５日（必着）",null,null,null,null,null,null,null,null,null,"<お願い>\n・金額は消費税抜きの額をご記入願います\n・出来高請求は1万円以下は切り捨て、次回調整でご記入願います\n・工事名・現場監督名をご記入願います\n・一工事一枚でお願いします\n・提出用のみ送付願います\n・提出先は各支店｢経理担当｣へお願いします\n・保留分については工事毎に再請求願います\n・注文書の工事№、工種№、業者コードを記入願います"]
[null,null,"※","ご提出先",null,null,null,null,"【本社】　　　　〒509-0302\n岐阜県加茂郡川辺町上川辺1643",null,null,null,null,null,null,null,null,null,"【尾張支店】　〒480-0131\n愛知県丹羽郡大口町高橋2-23"]
[]
[null,null,null,null,null,null,null,null,"【可児支店】　〒509-0201\n岐阜県可児市川合70-1",null,null,null,null,null,null,null,null,null,"【佐伯設計】　〒509-0201\n岐阜県可児市川合70-1"]
[]
[null,null,"※","お支払い日",null,null,null,null,"翌月末日　金融機関が休日の場合はその前日"]
[null,null,null,null,null,null,null,null,null,null,null,null,null,null,null,null,null,null,null,null,null,null,null,null,null,null,null,null,null,null,null,null,null,null,null,null,null,null,null,null,null,null,"請求書整理№"]
[null,null,null,null,null,null,null,null,null,null,null,null,null,null,null,{"$f":"IF(P3=\"\",\"\",P3)","v":""},null,"月分出来高請求書（提出用）",null,null,null,null,null,null,null,null,null,null,null,null,null,null,null,null,null,null,null,null,null,null,null,null,{"$f":"IF(AQ3=\"\",\"\",AQ3)","v":""}]
[null,"佐伯綜合建設株式会社　御中"]
[]
[null,null,null,null,null,null,null,null,null,null,null,null,null,null,null,null,null,null,null,null,null,"業者コード",null,null,"請求者",null,null,"住所",null,{"$f":"AD6","v":0}]
[null,null,"請求",null,null,{"$f":"IF(F7=\"\",\"\",F7)","v":""},null,"年",{"$f":"IF(I7=\"\",\"\",I7)","v":""},null,"月",{"$f":"IF(L7=\"\",\"\",L7)","v":""},null,"日",null,null,null,null,null,null,null,{"$f":"IF(V7=\"\",\"\",V7)","v":""},null,null,null,null,null,null,null,{"$f":"AD7","v":0}]
[null,null,null,null,null,null,null,null,null,null,null,null,null,null,null,null,null,null,null,null,null,null,null,null,null,null,null,"氏名"]
[null,"工事№",null,null,{"$f":"IF(E9=\"\",\"\",E9)","v":""},null,null,null,"注文書№",null,null,{"$f":"IF(L9=\"\",\"\",L9)","v":""}]
[]
[null,"工事名",null,null,{"$f":"IF(E11=\"\",\"\",E11)","v":""}]
[]
[null,"工種№",null,"工種名・品名",null,null,null,null,null,null,"内容",null,null,null,null,null,"出来高額",null,null,null,null,null,null,null,"出来高額累計",null,null,null,null,null,null,null,"出来高請求確認欄",null,null,null,null,null,null,null,"備考"]
[null,{"$f":"IF(B15=\"\",\"\",B15)","v":""},null,{"$f":"IF(D15=\"\",\"\",D15)","v":""},null,null,null,null,null,null,{"$f":"IF(K15=\"\",\"\",K15)","v":""},null,null,null,null,null,{"$f":"IF(Q15=\"\",\"\",Q15)","v":""},null,null,null,null,null,null,null,{"$f":"IF(Y15=\"\",\"\",Y15)","v":""},null,null,null,null,null,null,null,"請負金額",null,null,null,{"$f":"AK15","v":0}]
[null,{"$f":"IF(B16=\"\",\"\",B16)","v":""},null,{"$f":"IF(D16=\"\",\"\",D16)","v":""},null,null,null,null,null,null,{"$f":"IF(K16=\"\",\"\",K16)","v":""},null,null,null,null,null,"",null,null,null,null,null,null,null,"",null,null,null,null,null,null,null,"入金済み金額",null,null,null,{"$f":"AK16","v":0}]
[null,{"$f":"IF(B17=\"\",\"\",B17)","v":""},null,"",null,null,null,null,null,null,"",null,null,null,null,null,"",null,null,null,null,null,null,null,"",null,null,null,null,null,null,null,"自主検査出来高率",null,null,null,{"$f":"AK17","v":0},null,null,"％"]
[null,"",null,"",null,null,null,null,null,null,"",null,null,null,null,null,"",null,null,null,null,null,null,null,"",null,null,null,null,null,null,null,"今回請求額",null,null,null,{"$f":"AK18","v":0}]
[null,"",null,"",null,null,null,null,null,null,"",null,null,null,null,null,"",null,null,null,null,null,null,null,""]
[null,"",null,"",null,null,null,null,null,null,"",null,null,null,null,null,"",null,null,null,null,null,null,null,"",null,null,null,null,null,null,null,"↓いずれかにチェックを入れる（工務担当者）"]
[null,"",null,"",null,null,null,null,null,null,"",null,null,null,null,null,"",null,null,null,null,null,null,null,"",null,null,null,null,null,null,null,"　□外注費"]
[null,"",null,"",null,null,null,null,null,null,"",null,null,null,null,null,"",null,null,null,null,null,null,null,"",null,null,null,null,null,null,null,"　□材料費"]
[null,"",null,"",null,null,null,null,null,null,"",null,null,null,null,null,"",null,null,null,null,null,null,null,"",null,null,null,null,null,null,null,"　□工事経費"]
[null,"右 記 の 通 り 請 求 申 し 上 げ ま す 。",null,null,null,null,null,null,null,null,"請求合計(税抜)",null,null,null,null,null,{"$f":"SUM(Q44:X52)","v":0},null,null,null,null,null,null,null,"担当支店",null,null,null,{"$f":"AC24","v":0},null,null,null,null,null,null,"現場監督名",null,null,null,null,{"$f":"AO24","v":0}]
[]
[null,"月日",null,"↓いずれかに○",null,null,null,"訂正事由",null,null,null,null,null,null,null,null,null,"差引金額",null,null,null,null,null,null,"請求・支払内訳","発注決定金額"]
[null,null,null,"相殺・訂正・値引・保留",null,null,"理由",null,null,null,null,null,null,null,null,null,null,null,null,null,null,null,null,null,null,"支払済金額"]
[null,null,null,"相殺・訂正・値引・保留",null,null,"理由",null,null,null,null,null,null,null,null,null,null,null,null,null,null,null,null,null,null,"同上の残高"]
[null,null,null,"相殺・訂正・値引・保留",null,null,"理由",null,null,null,null,null,null,null,null,null,null,null,null,null,null,null,null,null,null,"今回支払金額"]
[null,null,null,"相殺・訂正・値引・保留",null,null,"理由",null,null,null,null,null,null,null,null,null,null,null,null,null,null,null,null,null,null,"差引残高"]